{"text_format":"3","workbook":"xlsx","n_sheets":14,"sheets":["mẹo","tóm tắt","thg1","thg2","thg3","thg4","thg5","thg6","thg7","thg8","thg9","thg10","thg11","thg12"],"not_rendered":{"charts":1,"defined_names":27},"read":"whole","date_system":"1900"}

{"sheet":"mẹo","index":0,"n_rows":18,"n_cols":1,"rows_kept":18}
["MẸO VỀ MẪU"]
["Có cách nào đơn giản để chuyển giữa trang tính tóm tắt Xu hướng Chi phí và chi tiết chi phí hàng tháng không?"]
["Để nhanh chóng dẫn hướng đến chi phí của một tháng cụ thể, hãy bấm vào liên kết dẫn hướng được liên kết ở phía trên biểu đồ, như liên kết dẫn hướng Thg1 ở B2. Tiếp theo, để quay lại trang tính Xu hướng Chi phí, hãy bấm vào liên kết dẫn hướng Tóm tắt ở D1. "]
["Để quay lại trang tính mẹo này, trong trang tính tóm tắt, chọn N2. Từ tất cả trang tính theo tháng, chọn E1."]
["Tôi có thể thêm loại Chi phí mới vào Tóm tắt Chi phí hay chi phí hàng tháng mới bằng cách nào?"]
["Tóm tắt Chi phí ở bên dưới biểu đồ và chi tiết chi phí cho mỗi tháng là các bảng Excel. Để thêm hàng mới vào bảng Excel bất kỳ, hãy thực hiện một trong các bước sau:"]
[{"$f":"ROW(A1)&\". Nếu bảng không chứa hàng Tổng, hãy bắt đầu nhập ở dưới bảng, bảng sẽ tự động bung rộng khi bạn nhấn vào phím Enter hoặc Tab.\"","v":"1. Nếu bảng không chứa hàng Tổng, hãy bắt đầu nhập ở dưới bảng, bảng sẽ tự động bung rộng khi bạn nhấn vào phím Enter hoặc Tab."}]
[{"$f":"ROW(A2)&\". Đặt con trỏ ô vào ô cuối cùng phía trên hàng Tổng, chẳng hạn như tổng chi phí cuối cùng, rồi nhấn phím Tab.\"","v":"2. Đặt con trỏ ô vào ô cuối cùng phía trên hàng Tổng, chẳng hạn như tổng chi phí cuối cùng, rồi nhấn phím Tab."}]
[{"$f":"ROW(A3)&\". Bấm chuột phải vào bảng và trên menu bật lên, trỏ tới Chèn, rồi bấm vào Hàng Trên trong Bảng hoặc Hàng Dưới trong Bảng.\"","v":"3. Bấm chuột phải vào bảng và trên menu bật lên, trỏ tới Chèn, rồi bấm vào Hàng Trên trong Bảng hoặc Hàng Dưới trong Bảng."}]
[{"$f":"ROW(A4)&\". Ở góc dưới cùng bên phải của bảng, đặt con trỏ trên núm điều khiển đổi cỡ bảng và kéo xuống để tăng số hàng có trong bảng.\"","v":"4. Ở góc dưới cùng bên phải của bảng, đặt con trỏ trên núm điều khiển đổi cỡ bảng và kéo xuống để tăng số hàng có trong bảng."}]
["Nhập chi phí vào trang tính tóm tắt trong bảng Tóm tắt Chi phí ở cột Chi phí."]
["Thêm khoản tiền chi phí cho mỗi loại chi phí trong trang tính theo tháng mà chi phí áp dụng."]
["ví dụ: \"Chi phí 1\" xuất hiện trong các tháng Thg1 đến Thg6 và Thg12. "]
[{"$f":"ROW(A1)&\". Chi phí 1 được nhập vào trang tính tóm tắt ở cột Chi phí trong bảng Tóm tắt Chi phí (dưới dạng tiêu đề loại chi phí)\"","v":"1. Chi phí 1 được nhập vào trang tính tóm tắt ở cột Chi phí trong bảng Tóm tắt Chi phí (dưới dạng tiêu đề loại chi phí)"}]
[{"$f":"ROW(A2)&\". Đối với mỗi tháng phát sinh chi phí, nhập chi phí trong trang tính của tháng tương ứng.\"","v":"2. Đối với mỗi tháng phát sinh chi phí, nhập chi phí trong trang tính của tháng tương ứng."}]
[{"$f":"ROW(A3)&\". Loại chi phí trong trang tính Tóm tắt Chi phí tạo ra một danh sách danh mục cho cột danh mục trong trang tính của mỗi tháng.\"","v":"3. Loại chi phí trong trang tính Tóm tắt Chi phí tạo ra một danh sách danh mục cho cột danh mục trong trang tính của mỗi tháng."}]
[{"$f":"ROW(A4)&\". Sử dụng danh sách danh mục trong cột danh mục đó để chọn loại chi phí tương ứng cho chi phí được nhập\"","v":"4. Sử dụng danh sách danh mục trong cột danh mục đó để chọn loại chi phí tương ứng cho chi phí được nhập"}]
[{"$f":"ROW(A5)&\". Để thêm chi phí mới cho một tháng bất kỳ, hãy thêm hàng mới vào bảng Tóm tắt Chi phí trong trang tính tóm tắt, rồi nhập các chi tiết về chi phí tương ứng trong trang tính của tháng phát sinh chi phí đó.\"","v":"5. Để thêm chi phí mới cho một tháng bất kỳ, hãy thêm hàng mới vào bảng Tóm tắt Chi phí trong trang tính tóm tắt, rồi nhập các chi tiết về chi phí tương ứng trong trang tính của tháng phát sinh chi phí đó."}]

{"sheet":"tóm tắt","index":1,"n_rows":10,"n_cols":15,"rows_kept":10}
["XU HƯỚNG CHI PHÍ"]
[null,"Thg1","Thg2","Thg3","Thg4","Thg5","Thg6","Thg7","Thg8","Thg9","Thg10","Thg11","Thg12","Mẹo"]
[]
["Chi phí","Thg1","Thg2","Thg3","Thg4","Thg5","Thg6","Thg7","Thg8","Thg9","Thg10","Thg11","Thg12","Tổng","Xu hướng"]
["Chi phí 1",{"$f":"SUMIFS(ExpJan[Số tiền],ExpJan[Danh mục],Tóm_tắt_Chi_phí[Chi phí])","v":{"v":726000,"d":"726,000.00"}},{"$f":"SUMIFS(ExpFeb[Số tiền],ExpFeb[Danh mục],Tóm_tắt_Chi_phí[Chi phí])","v":{"v":8250000,"d":"8,250,000.00"}},{"$f":"SUMIFS(ExpMar[Số tiền],ExpMar[Danh mục],Tóm_tắt_Chi_phí[Chi phí])","v":{"v":726000,"d":"726,000.00"}},{"$f":"SUMIFS(ExpApr[Số tiền],ExpApr[Danh mục],Tóm_tắt_Chi_phí[Chi phí])","v":{"v":990000,"d":"990,000.00"}},{"$f":"SUMIFS(ExpMay[Số tiền],ExpMay[Danh mục],Tóm_tắt_Chi_phí[Chi phí])","v":{"v":8250000,"d":"8,250,000.00"}},{"$f":"SUMIFS(ExpJun[Số tiền],ExpJun[Danh mục],Tóm_tắt_Chi_phí[Chi phí])","v":{"v":4422000,"d":"4,422,000.00"}},{"$f":"SUMIFS(ExpJul[Số tiền],ExpJul[Danh mục],Tóm_tắt_Chi_phí[Chi phí])","v":{"v":0,"d":"0.00"}},{"$f":"SUMIFS(ExpAug[Số tiền],ExpAug[Danh mục],Tóm_tắt_Chi_phí[Chi phí])","v":{"v":0,"d":"0.00"}},{"$f":"SUMIFS(ExpSep[Số tiền],ExpSep[Danh mục],Tóm_tắt_Chi_phí[Chi phí])","v":{"v":0,"d":"0.00"}},{"$f":"SUMIFS(ExpOct[Số tiền],ExpOct[Danh mục],Tóm_tắt_Chi_phí[Chi phí])","v":{"v":0,"d":"0.00"}},{"$f":"SUMIFS(ExpNov[Số tiền],ExpNov[Danh mục],Tóm_tắt_Chi_phí[Chi phí])","v":{"v":0,"d":"0.00"}},{"$f":"SUMIFS(ExpDec[Số tiền],ExpDec[Danh mục],Tóm_tắt_Chi_phí[Chi phí])","v":{"v":4422000,"d":"4,422,000.00"}},{"$f":"SUM(Tóm_tắt_Chi_phí[[#This Row],[Thg1]:[Thg12]])","v":{"v":27786000,"d":"27,786,000.00"}}]
["Chi phí 2",{"$f":"SUMIFS(ExpJan[Số tiền],ExpJan[Danh mục],Tóm_tắt_Chi_phí[Chi phí])","v":{"v":5236000,"d":"5,236,000.00"}},{"$f":"SUMIFS(ExpFeb[Số tiền],ExpFeb[Danh mục],Tóm_tắt_Chi_phí[Chi phí])","v":{"v":5236000,"d":"5,236,000.00"}},{"$f":"SUMIFS(ExpMar[Số tiền],ExpMar[Danh mục],Tóm_tắt_Chi_phí[Chi phí])","v":{"v":5236000,"d":"5,236,000.00"}},{"$f":"SUMIFS(ExpApr[Số tiền],ExpApr[Danh mục],Tóm_tắt_Chi_phí[Chi phí])","v":{"v":2706000,"d":"2,706,000.00"}},{"$f":"SUMIFS(ExpMay[Số tiền],ExpMay[Danh mục],Tóm_tắt_Chi_phí[Chi phí])","v":{"v":2442000,"d":"2,442,000.00"}},{"$f":"SUMIFS(ExpJun[Số tiền],ExpJun[Danh mục],Tóm_tắt_Chi_phí[Chi phí])","v":{"v":2156000,"d":"2,156,000.00"}},{"$f":"SUMIFS(ExpJul[Số tiền],ExpJul[Danh mục],Tóm_tắt_Chi_phí[Chi phí])","v":{"v":0,"d":"0.00"}},{"$f":"SUMIFS(ExpAug[Số tiền],ExpAug[Danh mục],Tóm_tắt_Chi_phí[Chi phí])","v":{"v":0,"d":"0.00"}},{"$f":"SUMIFS(ExpSep[Số tiền],ExpSep[Danh mục],Tóm_tắt_Chi_phí[Chi phí])","v":{"v":0,"d":"0.00"}},{"$f":"SUMIFS(ExpOct[Số tiền],ExpOct[Danh mục],Tóm_tắt_Chi_phí[Chi phí])","v":{"v":0,"d":"0.00"}},{"$f":"SUMIFS(ExpNov[Số tiền],ExpNov[Danh mục],Tóm_tắt_Chi_phí[Chi phí])","v":{"v":0,"d":"0.00"}},{"$f":"SUMIFS(ExpDec[Số tiền],ExpDec[Danh mục],Tóm_tắt_Chi_phí[Chi phí])","v":{"v":9680000,"d":"9,680,000.00"}},{"$f":"SUM(Tóm_tắt_Chi_phí[[#This Row],[Thg1]:[Thg12]])","v":{"v":32692000,"d":"32,692,000.00"}}]
["Chi phí 3",{"$f":"SUMIFS(ExpJan[Số tiền],ExpJan[Danh mục],Tóm_tắt_Chi_phí[Chi phí])","v":{"v":2420000,"d":"2,420,000.00"}},{"$f":"SUMIFS(ExpFeb[Số tiền],ExpFeb[Danh mục],Tóm_tắt_Chi_phí[Chi phí])","v":{"v":2420000,"d":"2,420,000.00"}},{"$f":"SUMIFS(ExpMar[Số tiền],ExpMar[Danh mục],Tóm_tắt_Chi_phí[Chi phí])","v":{"v":2420000,"d":"2,420,000.00"}},{"$f":"SUMIFS(ExpApr[Số tiền],ExpApr[Danh mục],Tóm_tắt_Chi_phí[Chi phí])","v":{"v":2750000,"d":"2,750,000.00"}},{"$f":"SUMIFS(ExpMay[Số tiền],ExpMay[Danh mục],Tóm_tắt_Chi_phí[Chi phí])","v":{"v":7326000,"d":"7,326,000.00"}},{"$f":"SUMIFS(ExpJun[Số tiền],ExpJun[Danh mục],Tóm_tắt_Chi_phí[Chi phí])","v":{"v":2684000,"d":"2,684,000.00"}},{"$f":"SUMIFS(ExpJul[Số tiền],ExpJul[Danh mục],Tóm_tắt_Chi_phí[Chi phí])","v":{"v":0,"d":"0.00"}},{"$f":"SUMIFS(ExpAug[Số tiền],ExpAug[Danh mục],Tóm_tắt_Chi_phí[Chi phí])","v":{"v":0,"d":"0.00"}},{"$f":"SUMIFS(ExpSep[Số tiền],ExpSep[Danh mục],Tóm_tắt_Chi_phí[Chi phí])","v":{"v":0,"d":"0.00"}},{"$f":"SUMIFS(ExpOct[Số tiền],ExpOct[Danh mục],Tóm_tắt_Chi_phí[Chi phí])","v":{"v":0,"d":"0.00"}},{"$f":"SUMIFS(ExpNov[Số tiền],ExpNov[Danh mục],Tóm_tắt_Chi_phí[Chi phí])","v":{"v":0,"d":"0.00"}},{"$f":"SUMIFS(ExpDec[Số tiền],ExpDec[Danh mục],Tóm_tắt_Chi_phí[Chi phí])","v":{"v":2684000,"d":"2,684,000.00"}},{"$f":"SUM(Tóm_tắt_Chi_phí[[#This Row],[Thg1]:[Thg12]])","v":{"v":22704000,"d":"22,704,000.00"}}]
["Chi phí 4",{"$f":"SUMIFS(ExpJan[Số tiền],ExpJan[Danh mục],Tóm_tắt_Chi_phí[Chi phí])","v":{"v":9372000,"d":"9,372,000.00"}},{"$f":"SUMIFS(ExpFeb[Số tiền],ExpFeb[Danh mục],Tóm_tắt_Chi_phí[Chi phí])","v":{"v":1848000,"d":"1,848,000.00"}},{"$f":"SUMIFS(ExpMar[Số tiền],ExpMar[Danh mục],Tóm_tắt_Chi_phí[Chi phí])","v":{"v":1848000,"d":"1,848,000.00"}},{"$f":"SUMIFS(ExpApr[Số tiền],ExpApr[Danh mục],Tóm_tắt_Chi_phí[Chi phí])","v":{"v":9372000,"d":"9,372,000.00"}},{"$f":"SUMIFS(ExpMay[Số tiền],ExpMay[Danh mục],Tóm_tắt_Chi_phí[Chi phí])","v":{"v":2750000,"d":"2,750,000.00"}},{"$f":"SUMIFS(ExpJun[Số tiền],ExpJun[Danh mục],Tóm_tắt_Chi_phí[Chi phí])","v":{"v":4114000,"d":"4,114,000.00"}},{"$f":"SUMIFS(ExpJul[Số tiền],ExpJul[Danh mục],Tóm_tắt_Chi_phí[Chi phí])","v":{"v":0,"d":"0.00"}},{"$f":"SUMIFS(ExpAug[Số tiền],ExpAug[Danh mục],Tóm_tắt_Chi_phí[Chi phí])","v":{"v":0,"d":"0.00"}},{"$f":"SUMIFS(ExpSep[Số tiền],ExpSep[Danh mục],Tóm_tắt_Chi_phí[Chi phí])","v":{"v":0,"d":"0.00"}},{"$f":"SUMIFS(ExpOct[Số tiền],ExpOct[Danh mục],Tóm_tắt_Chi_phí[Chi phí])","v":{"v":0,"d":"0.00"}},{"$f":"SUMIFS(ExpNov[Số tiền],ExpNov[Danh mục],Tóm_tắt_Chi_phí[Chi phí])","v":{"v":0,"d":"0.00"}},{"$f":"SUMIFS(ExpDec[Số tiền],ExpDec[Danh mục],Tóm_tắt_Chi_phí[Chi phí])","v":{"v":4114000,"d":"4,114,000.00"}},{"$f":"SUM(Tóm_tắt_Chi_phí[[#This Row],[Thg1]:[Thg12]])","v":{"v":33418000,"d":"33,418,000.00"}}]
["Chi phí 5",{"$f":"SUMIFS(ExpJan[Số tiền],ExpJan[Danh mục],Tóm_tắt_Chi_phí[Chi phí])","v":{"v":1188000,"d":"1,188,000.00"}},{"$f":"SUMIFS(ExpFeb[Số tiền],ExpFeb[Danh mục],Tóm_tắt_Chi_phí[Chi phí])","v":{"v":1188000,"d":"1,188,000.00"}},{"$f":"SUMIFS(ExpMar[Số tiền],ExpMar[Danh mục],Tóm_tắt_Chi_phí[Chi phí])","v":{"v":2398000,"d":"2,398,000.00"}},{"$f":"SUMIFS(ExpApr[Số tiền],ExpApr[Danh mục],Tóm_tắt_Chi_phí[Chi phí])","v":{"v":2156000,"d":"2,156,000.00"}},{"$f":"SUMIFS(ExpMay[Số tiền],ExpMay[Danh mục],Tóm_tắt_Chi_phí[Chi phí])","v":{"v":726000,"d":"726,000.00"}},{"$f":"SUMIFS(ExpJun[Số tiền],ExpJun[Danh mục],Tóm_tắt_Chi_phí[Chi phí])","v":{"v":9702000,"d":"9,702,000.00"}},{"$f":"SUMIFS(ExpJul[Số tiền],ExpJul[Danh mục],Tóm_tắt_Chi_phí[Chi phí])","v":{"v":0,"d":"0.00"}},{"$f":"SUMIFS(ExpAug[Số tiền],ExpAug[Danh mục],Tóm_tắt_Chi_phí[Chi phí])","v":{"v":0,"d":"0.00"}},{"$f":"SUMIFS(ExpSep[Số tiền],ExpSep[Danh mục],Tóm_tắt_Chi_phí[Chi phí])","v":{"v":0,"d":"0.00"}},{"$f":"SUMIFS(ExpOct[Số tiền],ExpOct[Danh mục],Tóm_tắt_Chi_phí[Chi phí])","v":{"v":0,"d":"0.00"}},{"$f":"SUMIFS(ExpNov[Số tiền],ExpNov[Danh mục],Tóm_tắt_Chi_phí[Chi phí])","v":{"v":0,"d":"0.00"}},{"$f":"SUMIFS(ExpDec[Số tiền],ExpDec[Danh mục],Tóm_tắt_Chi_phí[Chi phí])","v":{"v":2178000,"d":"2,178,000.00"}},{"$f":"SUM(Tóm_tắt_Chi_phí[[#This Row],[Thg1]:[Thg12]])","v":{"v":19536000,"d":"19,536,000.00"}}]
["Tổng",{"$f":"SUBTOTAL(109,Tóm_tắt_Chi_phí[Thg1])","v":{"v":18942000,"d":"18,942,000.00"}},{"$f":"SUBTOTAL(109,Tóm_tắt_Chi_phí[Thg2])","v":{"v":18942000,"d":"18,942,000.00"}},{"$f":"SUBTOTAL(109,Tóm_tắt_Chi_phí[Thg3])","v":{"v":12628000,"d":"12,628,000.00"}},{"$f":"SUBTOTAL(109,Tóm_tắt_Chi_phí[Thg4])","v":{"v":17974000,"d":"17,974,000.00"}},{"$f":"SUBTOTAL(109,Tóm_tắt_Chi_phí[Thg5])","v":{"v":21494000,"d":"21,494,000.00"}},{"$f":"SUBTOTAL(109,Tóm_tắt_Chi_phí[Thg6])","v":{"v":23078000,"d":"23,078,000.00"}},{"$f":"SUBTOTAL(109,Tóm_tắt_Chi_phí[Thg7])","v":{"v":0,"d":"0.00"}},{"$f":"SUBTOTAL(109,Tóm_tắt_Chi_phí[Thg8])","v":{"v":0,"d":"0.00"}},{"$f":"SUBTOTAL(109,Tóm_tắt_Chi_phí[Thg9])","v":{"v":0,"d":"0.00"}},{"$f":"SUBTOTAL(109,Tóm_tắt_Chi_phí[Thg10])","v":{"v":0,"d":"0.00"}},{"$f":"SUBTOTAL(109,Tóm_tắt_Chi_phí[Thg11])","v":{"v":0,"d":"0.00"}},{"$f":"SUBTOTAL(109,Tóm_tắt_Chi_phí[Thg12])","v":{"v":23078000,"d":"23,078,000.00"}},{"$f":"SUBTOTAL(109,Tóm_tắt_Chi_phí[Tổng])","v":{"v":136136000,"d":"136,136,000.00"}}]

{"sheet":"thg1","index":2,"n_rows":9,"n_cols":5,"rows_kept":9,"merged":[[0,0,0,2]]}
["CHI PHÍ THÁNG 1",null,null,"Tóm tắt","Mẹo"]
["Ngày","Số PO","Số tiền","Danh mục","Mô tả"]
[{"$f":"DATE(YEAR(TODAY()),1,4)","v":"2017-01-04"},"A-12345",{"v":726000,"d":"726,000.00"},"Chi phí 1","Nguồn cấp"]
[{"$f":"DATE(YEAR(TODAY()),1,5)","v":"2017-01-05"},"A-12346",{"v":5236000,"d":"5,236,000.00"},"Chi phí 2"]
[null,null,{"v":7524000,"d":"7,524,000.00"},"Chi phí 4"]
[null,null,{"v":2420000,"d":"2,420,000.00"},"Chi phí 3"]
[null,null,{"v":1848000,"d":"1,848,000.00"},"Chi phí 4"]
[null,null,{"v":1188000,"d":"1,188,000.00"},"Chi phí 5"]
["Tổng",null,{"$f":"SUBTOTAL(109,ExpJan[Số tiền])","v":{"v":18942000,"d":"18,942,000.00"}}]

{"sheet":"thg2","index":3,"n_rows":9,"n_cols":5,"rows_kept":9,"merged":[[0,0,0,2]]}
["CHI PHÍ THÁNG 2",null,null,"Tóm tắt","Mẹo"]
["Ngày","Số PO","Số tiền","Danh mục","Mô tả"]
[{"$f":"DATE(YEAR(TODAY()),2,3)","v":"2017-02-03"},"A-12345",{"v":726000,"d":"726,000.00"},"Chi phí 1","Nguồn cấp"]
[{"$f":"DATE(YEAR(TODAY()),2,4)","v":"2017-02-04"},"A-12346",{"v":5236000,"d":"5,236,000.00"},"Chi phí 2"]
[null,null,{"v":7524000,"d":"7,524,000.00"},"Chi phí 1"]
[null,null,{"v":2420000,"d":"2,420,000.00"},"Chi phí 3"]
[null,null,{"v":1848000,"d":"1,848,000.00"},"Chi phí 4"]
[null,null,{"v":1188000,"d":"1,188,000.00"},"Chi phí 5"]
["Tổng",null,{"$f":"SUBTOTAL(109,ExpFeb[Số tiền])","v":{"v":18942000,"d":"18,942,000.00"}}]

{"sheet":"thg3","index":4,"n_rows":9,"n_cols":5,"rows_kept":9,"merged":[[0,0,0,2]]}
["CHI PHÍ THÁNG 3",null,null,"Tóm tắt","Mẹo"]
["Ngày","Số PO","Số tiền","Danh mục","Mô tả"]
[{"$f":"DATE(YEAR(TODAY()),3,5)","v":"2017-03-05"},"A-12345",{"v":726000,"d":"726,000.00"},"Chi phí 1","Nguồn cấp"]
[{"$f":"DATE(YEAR(TODAY()),3,6)","v":"2017-03-06"},"A-12346",{"v":5236000,"d":"5,236,000.00"},"Chi phí 2"]
[null,null,{"v":1210000,"d":"1,210,000.00"},"Chi phí 5"]
[null,null,{"v":2420000,"d":"2,420,000.00"},"Chi phí 3"]
[null,null,{"v":1848000,"d":"1,848,000.00"},"Chi phí 4"]
[null,null,{"v":1188000,"d":"1,188,000.00"},"Chi phí 5"]
["Tổng",null,{"$f":"SUBTOTAL(109,ExpMar[Số tiền])","v":{"v":12628000,"d":"12,628,000.00"}}]

{"sheet":"thg4","index":5,"n_rows":9,"n_cols":5,"rows_kept":9,"merged":[[0,0,0,2]]}
["CHI PHÍ THÁNG 4",null,null,"Tóm tắt","Mẹo"]
["Ngày","Số PO","Số tiền","Danh mục","Mô tả"]
[{"$f":"DATE(YEAR(TODAY()),4,4)","v":"2017-04-04"},"A-12345",{"v":990000,"d":"990,000.00"},"Chi phí 1","Nguồn cấp"]
[{"$f":"DATE(YEAR(TODAY()),4,8)","v":"2017-04-08"},"A-12346",{"v":2706000,"d":"2,706,000.00"},"Chi phí 2"]
[null,null,{"v":7524000,"d":"7,524,000.00"},"Chi phí 4"]
[null,null,{"v":2750000,"d":"2,750,000.00"},"Chi phí 3"]
[null,null,{"v":1848000,"d":"1,848,000.00"},"Chi phí 4"]
[null,null,{"v":2156000,"d":"2,156,000.00"},"Chi phí 5"]
["Tổng",null,{"$f":"SUBTOTAL(109,ExpApr[Số tiền])","v":{"v":17974000,"d":"17,974,000.00"}}]

{"sheet":"thg5","index":6,"n_rows":9,"n_cols":5,"rows_kept":9,"merged":[[0,0,0,2]]}
["CHI PHÍ THÁNG 5",null,null,"Tóm tắt","Mẹo"]
["Ngày","Số PO","Số tiền","Danh mục","Mô tả"]
[{"$f":"DATE(YEAR(TODAY()),5,3)","v":"2017-05-03"},"A-12345",{"v":726000,"d":"726,000.00"},"Chi phí 1","Nguồn cấp"]
[{"$f":"DATE(YEAR(TODAY()),5,8)","v":"2017-05-08"},"A-12346",{"v":2442000,"d":"2,442,000.00"},"Chi phí 2"]
[null,null,{"v":7524000,"d":"7,524,000.00"},"Chi phí 1"]
[null,null,{"v":7326000,"d":"7,326,000.00"},"Chi phí 3"]
[null,null,{"v":2750000,"d":"2,750,000.00"},"Chi phí 4"]
[null,null,{"v":726000,"d":"726,000.00"},"Chi phí 5"]
["Tổng",null,{"$f":"SUBTOTAL(109,ExpMay[Số tiền])","v":{"v":21494000,"d":"21,494,000.00"}}]

{"sheet":"thg6","index":7,"n_rows":9,"n_cols":5,"rows_kept":9,"merged":[[0,0,0,2]]}
["CHI PHÍ THÁNG 6",null,null,"Tóm tắt","Mẹo"]
["Ngày","Số PO","Số tiền","Danh mục","Mô tả"]
[{"$f":"DATE(YEAR(TODAY()),6,7)","v":"2017-06-07"},"A-12345",{"v":4422000,"d":"4,422,000.00"},"Chi phí 1","Nguồn cấp"]
[{"$f":"DATE(YEAR(TODAY()),6,8)","v":"2017-06-08"},"A-12346",{"v":2156000,"d":"2,156,000.00"},"Chi phí 2"]
[null,null,{"v":7524000,"d":"7,524,000.00"},"Chi phí 5"]
[null,null,{"v":2684000,"d":"2,684,000.00"},"Chi phí 3"]
[null,null,{"v":4114000,"d":"4,114,000.00"},"Chi phí 4"]
[null,null,{"v":2178000,"d":"2,178,000.00"},"Chi phí 5"]
["Tổng",null,{"$f":"SUBTOTAL(109,ExpJun[Số tiền])","v":{"v":23078000,"d":"23,078,000.00"}}]

{"sheet":"thg7","index":8,"n_rows":9,"n_cols":5,"rows_kept":9,"merged":[[0,0,0,2]]}
["CHI PHÍ THÁNG 7",null,null,"Tóm tắt","Mẹo"]
["Ngày","Số PO","Số tiền","Danh mục","Mô tả"]
[{"$f":"DATE(YEAR(TODAY()),7,9)","v":"2017-07-09"},"A-12345",null,"Chi phí 1","Nguồn cấp"]
[{"$f":"DATE(YEAR(TODAY()),7,14)","v":"2017-07-14"},"A-12346",null,"Chi phí 2"]
[{"$nulls":3},"Chi phí 2"]
[{"$nulls":3},"Chi phí 3"]
[{"$nulls":3},"Chi phí 4"]
[{"$nulls":3},"Chi phí 5"]
["Tổng",null,{"$f":"SUBTOTAL(109,ExpJul[Số tiền])","v":{"v":0,"d":"0.00"}}]

{"sheet":"thg8","index":9,"n_rows":9,"n_cols":5,"rows_kept":9,"merged":[[0,0,0,2]]}
["CHI PHÍ THÁNG 8",null,null,"Tóm tắt","Mẹo"]
["Ngày","Số PO","Số tiền","Danh mục","Mô tả"]
[{"$f":"DATE(YEAR(TODAY()),8,8)","v":"2017-08-08"},"A-12345",null,"Chi phí 1","Nguồn cấp"]
[{"$f":"DATE(YEAR(TODAY()),8,9)","v":"2017-08-09"},"A-12346",null,"Chi phí 2"]
[{"$nulls":3},"Chi phí 2"]
[{"$nulls":3},"Chi phí 3"]
[{"$nulls":3},"Chi phí 4"]
[{"$nulls":3},"Chi phí 5"]
["Tổng",null,{"$f":"SUBTOTAL(109,ExpAug[Số tiền])","v":{"v":0,"d":"0.00"}}]

{"sheet":"thg9","index":10,"n_rows":9,"n_cols":5,"rows_kept":9,"merged":[[0,0,0,2]]}
["CHI PHÍ THÁNG 9",null,null,"Tóm tắt","Mẹo"]
["Ngày","Số PO","Số tiền","Danh mục","Mô tả"]
[{"$f":"DATE(YEAR(TODAY()),9,9)","v":"2017-09-09"},"A-12345",null,"Chi phí 1","Nguồn cấp"]
[{"$f":"DATE(YEAR(TODAY()),9,15)","v":"2017-09-15"},"A-12346",null,"Chi phí 2"]
[{"$nulls":3},"Chi phí 2"]
[{"$nulls":3},"Chi phí 3"]
[{"$nulls":3},"Chi phí 4"]
[{"$nulls":3},"Chi phí 5"]
["Tổng",null,{"$f":"SUBTOTAL(109,ExpSep[Số tiền])","v":{"v":0,"d":"0.00"}}]

{"sheet":"thg10","index":11,"n_rows":9,"n_cols":5,"rows_kept":9,"merged":[[0,0,0,2]]}
["CHI PHÍ THÁNG 10",null,null,"Tóm tắt","Mẹo"]
["Ngày","Số PO","Số tiền","Danh mục","Mô tả"]
[{"$f":"DATE(YEAR(TODAY()),10,10)","v":"2017-10-10"},"A-12345",null,"Chi phí 1","Nguồn cấp"]
[{"$f":"DATE(YEAR(TODAY()),10,21)","v":"2017-10-21"},"A-12346",null,"Chi phí 2"]
[{"$nulls":3},"Chi phí 2"]
[{"$nulls":3},"Chi phí 3"]
[{"$nulls":3},"Chi phí 4"]
[{"$nulls":3},"Chi phí 5"]
["Tổng",null,{"$f":"SUBTOTAL(109,ExpOct[Số tiền])","v":{"v":0,"d":"0.00"}}]

{"sheet":"thg11","index":12,"n_rows":9,"n_cols":5,"rows_kept":9,"merged":[[0,0,0,2]]}
["CHI PHÍ THÁNG 11",null,null,"Tóm tắt","Mẹo"]
["Ngày","Số PO","Số tiền","Danh mục","Mô tả"]
[{"$f":"DATE(YEAR(TODAY()),11,14)","v":"2017-11-14"},"A-12345",null,"Chi phí 1","Nguồn cấp"]
[{"$f":"DATE(YEAR(TODAY()),11,21)","v":"2017-11-21"},"A-12346",null,"Chi phí 2"]
[{"$nulls":3},"Chi phí 2"]
[{"$nulls":3},"Chi phí 3"]
[{"$nulls":3},"Chi phí 4"]
[{"$nulls":3},"Chi phí 5"]
["Tổng",null,{"$f":"SUBTOTAL(109,ExpNov[Số tiền])","v":{"v":0,"d":"0.00"}}]

{"sheet":"thg12","index":13,"n_rows":9,"n_cols":5,"rows_kept":9,"merged":[[0,0,0,2]]}
["CHI PHÍ THÁNG 12",null,null,"Tóm tắt","Mẹo"]
["Ngày","Số PO","Số tiền","Danh mục","Mô tả"]
[{"$f":"DATE(YEAR(TODAY()),12,2)","v":"2017-12-02"},"A-12345",{"v":4422000,"d":"4,422,000.00"},"Chi phí 1","Nguồn cấp"]
[{"$f":"DATE(YEAR(TODAY()),12,24)","v":"2017-12-24"},"A-12346",{"v":2156000,"d":"2,156,000.00"},"Chi phí 2"]
[null,null,{"v":7524000,"d":"7,524,000.00"},"Chi phí 2"]
[null,null,{"v":2684000,"d":"2,684,000.00"},"Chi phí 3"]
[null,null,{"v":4114000,"d":"4,114,000.00"},"Chi phí 4"]
[null,null,{"v":2178000,"d":"2,178,000.00"},"Chi phí 5"]
["Tổng",null,{"$f":"SUBTOTAL(109,ExpDec[Số tiền])","v":{"v":23078000,"d":"23,078,000.00"}}]